[Event "*** Biggest EVER Titled Tuesday"]
[Site "Chess.com"]
[Date "2018.04.17"]
[Round "6"]
[White "lupta_robin"]
[Black "TastyFrenchFries"]
[Result "0-1"]
[WhiteElo "2431"]
[BlackElo "2339"]
[TimeControl "180+2"]
[EndTime "14:24:38 PDT"]
[Termination "TastyFrenchFries won by resignation"]

1. e4 {[%clk 0:03:01.9]} 1... e6 {[%clk 0:03:01.8]} 2. d4 {[%clk 0:03:02.5]}
2... d5 {[%clk 0:03:01.9]} 3. Nc3 {[%clk 0:03:03.9]} 3... Bb4 {[%clk 0:03:01.5]}
4. e5 {[%clk 0:03:04.3]} 4... c5 {[%clk 0:03:01.8]} 5. a3 {[%clk 0:03:04.6]}
5... Bxc3+ {[%clk 0:03:02.1]} 6. bxc3 {[%clk 0:03:05.6]} 6... Ne7 {[%clk
0:03:03.6]} 7. Qg4 {[%clk 0:03:06.2]} 7... Qc7 {[%clk 0:03:04.5]} 8. Bd3 {[%clk
0:02:54]} 8... c4 {[%clk 0:03:02.9]} 9. Be2 {[%clk 0:02:53.1]} 9... Nf5 {[%clk
0:03:03.4]} 10. Nf3 {[%clk 0:02:50.5]} 10... Nc6 {[%clk 0:03:03.9]} 11. Nh4
{[%clk 0:02:29.8]} 11... Nce7 {[%clk 0:03:04.2]} 12. Nxf5 {[%clk 0:02:31.2]}
12... Nxf5 {[%clk 0:03:06.1]} 13. Qf4 {[%clk 0:02:30.5]} 13... Qa5 {[%clk
0:03:01.9]} 14. Bd2 {[%clk 0:02:30.8]} 14... Qa4 {[%clk 0:03:01]} 15. Ra2 {[%clk
0:02:23.7]} 15... Bd7 {[%clk 0:02:54]} 16. g4 {[%clk 0:02:21.8]} 16... Ne7
{[%clk 0:02:54.6]} 17. h4 {[%clk 0:02:22.4]} 17... Ng6 {[%clk 0:02:41.7]} 18.
Qg3 {[%clk 0:02:20.2]} 18... h6 {[%clk 0:02:07.6]} 19. h5 {[%clk 0:02:16.6]}
19... Ne7 {[%clk 0:02:07.6]} 20. f3 {[%clk 0:01:57.1]} 20... O-O-O {[%clk
0:02:04.6]} 21. Be3 {[%clk 0:01:44.2]} 21... b6 {[%clk 0:02:01.1]} 22. Kd2
{[%clk 0:01:44.8]} 22... Kb7 {[%clk 0:01:58.5]} 23. f4 {[%clk 0:01:43]} 23... f5
{[%clk 0:01:50.5]} 24. g5 {[%clk 0:01:42.2]} 24... Rdg8 {[%clk 0:01:49.1]} 25.
Qh4 {[%clk 0:01:30.4]} 25... Nc6 {[%clk 0:01:42.3]} 26. Raa1 {[%clk 0:01:25]}
26... Re8 {[%clk 0:01:33.4]} 27. Rhg1 {[%clk 0:01:24.2]} 27... Re7 {[%clk
0:01:32.2]} 28. gxh6 {[%clk 0:01:18.6]} 28... Rxh6 {[%clk 0:01:26.5]} 29. Rg6
{[%clk 0:01:16.3]} 29... Rh7 {[%clk 0:01:23.5]} 30. h6 {[%clk 0:01:10.4]} 30...
Rxh6 {[%clk 0:01:12.8]} 31. Rxh6 {[%clk 0:01:10.9]} 31... gxh6 {[%clk
0:01:13.1]} 32. Qxh6 {[%clk 0:01:12.3]} 32... Qb5 {[%clk 0:01:10.9]} 33. Kc1
{[%clk 0:01:08.3]} 33... Na5 {[%clk 0:01:04.9]} 34. a4 {[%clk 0:01:01.8]} 34...
Qc6 {[%clk 0:01:02.5]} 35. Kd2 {[%clk 0:00:59.1]} 35... Qc8 {[%clk 0:01:01.4]}
36. Bf2 {[%clk 0:00:58]} 36... Qg8 {[%clk 0:00:54.9]} 37. Rg1 {[%clk 0:00:55.3]}
37... Qf7 {[%clk 0:00:52.7]} 38. Bh4 {[%clk 0:00:53.3]} 38... Qh7 {[%clk
0:00:51]} 39. Qg5 {[%clk 0:00:45.4]} 39... Re8 {[%clk 0:00:48.3]} 40. Qg7 {[%clk
0:00:38.1]} 40... Qxg7 {[%clk 0:00:47.1]} 41. Rxg7 {[%clk 0:00:39.5]} 41... Kc6
{[%clk 0:00:45.1]} 42. Bf6 {[%clk 0:00:37]} 42... Rc8 {[%clk 0:00:43]} 43. Bh5
{[%clk 0:00:34.9]} 43... Be8 {[%clk 0:00:27.9]} 44. Rg8 {[%clk 0:00:32.3]} 44...
Bd7 {[%clk 0:00:26.7]} 45. Rg7 {[%clk 0:00:31.7]} 45... Be8 {[%clk 0:00:27.8]}
46. Bxe8+ {[%clk 0:00:22.5]} 46... Rxe8 {[%clk 0:00:29.7]} 47. Rxa7 {[%clk
0:00:23.4]} 47... Nb7 {[%clk 0:00:30.4]} 48. Kc1 {[%clk 0:00:21.9]} 48... Kc7
{[%clk 0:00:22.8]} 49. Kb2 {[%clk 0:00:21.3]} 49... Kb8 {[%clk 0:00:20.8]} 50.
Ra6 {[%clk 0:00:22.2]} 50... Kc7 {[%clk 0:00:20.7]} 51. Ka3 {[%clk 0:00:23.2]}
51... Rg8 {[%clk 0:00:20]} 52. Bg5 {[%clk 0:00:22.7]} 52... Re8 {[%clk 0:00:20]}
53. Kb4 {[%clk 0:00:23.4]} 53... Kc6 {[%clk 0:00:19.3]} 54. Ra7 {[%clk
0:00:22.1]} 54... Rh8 {[%clk 0:00:17.8]} 55. a5 {[%clk 0:00:22.6]} 55... bxa5+
{[%clk 0:00:17]} 56. Ka4 {[%clk 0:00:24.1]} 56... Kb6 {[%clk 0:00:15.9]} 57.
Rxb7+ {[%clk 0:00:19.7]} 57... Kxb7 {[%clk 0:00:16.1]} 58. Kxa5 {[%clk
0:00:21.6]} 58... Kc6 {[%clk 0:00:17.7]} 59. Kb4 {[%clk 0:00:22.5]} 59... Rb8+
{[%clk 0:00:18.6]} 60. Ka3 {[%clk 0:00:23.4]} 60... Rb1 {[%clk 0:00:19.9]} 61.
Ka2 {[%clk 0:00:24.4]} 61... Re1 {[%clk 0:00:21.3]} 62. Ka3 {[%clk 0:00:24.7]}
62... Kd7 {[%clk 0:00:22.8]} 63. Kb4 {[%clk 0:00:25.7]} 63... Ke8 {[%clk
0:00:24.3]} 64. Kc5 {[%clk 0:00:25.6]} 64... Kf7 {[%clk 0:00:25.8]} 65. Kb4
{[%clk 0:00:26.4]} 65... Re2 {[%clk 0:00:26.8]} 66. Kc5 {[%clk 0:00:25.9]} 66...
Rxc2 {[%clk 0:00:28.1]} 67. Kb4 {[%clk 0:00:27]} 67... Rb2+ {[%clk 0:00:29.6]}
68. Kc5 {[%clk 0:00:26.3]} 68... Rb3 {[%clk 0:00:31.1]} 0-1

[Event "*** Biggest EVER Titled Tuesday"]
[Site "Chess.com"]
[Date "2018.04.17"]
[Round "6"]
[White "sandager"]
[Black "leclash"]
[Result "0-1"]
[WhiteElo "1932"]
[BlackElo "2329"]
[TimeControl "180+2"]
[EndTime "14:24:41 PDT"]
[Termination "leclash won by resignation"]

1. e4 {[%clk 0:03:00.5]} 1... e5 {[%clk 0:02:58.3]} 2. Nf3 {[%clk 0:03:01.2]}
2... Nc6 {[%clk 0:02:58.7]} 3. Bb5 {[%clk 0:03:02.5]} 3... d6 {[%clk 0:02:58.4]}
4. O-O {[%clk 0:03:01.2]} 4... Bd7 {[%clk 0:02:59.6]} 5. d4 {[%clk 0:03:00.7]}
5... Nf6 {[%clk 0:03:00.2]} 6. Nc3 {[%clk 0:03:00.3]} 6... Be7 {[%clk
0:02:59.2]} 7. Re1 {[%clk 0:03:00.6]} 7... exd4 {[%clk 0:02:58.7]} 8. Nxd4
{[%clk 0:03:00.1]} 8... O-O {[%clk 0:02:58.4]} 9. h3 {[%clk 0:02:51.9]} 9... Re8
{[%clk 0:02:54.7]} 10. Bf4 {[%clk 0:02:45.2]} 10... Nxd4 {[%clk 0:02:45.5]} 11.
Qxd4 {[%clk 0:02:44.3]} 11... Bxb5 {[%clk 0:02:46]} 12. Nxb5 {[%clk 0:02:44.6]}
12... Nd7 {[%clk 0:02:43.8]} 13. Rad1 {[%clk 0:02:15.6]} 13... Bf6 {[%clk
0:02:38.8]} 14. Qb4 {[%clk 0:02:12.3]} 14... Ne5 {[%clk 0:01:56]} 15. Qb3 {[%clk
0:01:52.1]} 15... a5 {[%clk 0:01:47.8]} 16. Nd4 {[%clk 0:01:50.6]} 16... Ng6
{[%clk 0:01:39.8]} 17. Bg3 {[%clk 0:01:37.1]} 17... a4 {[%clk 0:01:28.6]} 18.
Qd3 {[%clk 0:01:24.2]} 18... Ne5 {[%clk 0:01:21.8]} 19. Qe2 {[%clk 0:01:19.1]}
19... g6 {[%clk 0:01:14.9]} 20. c3 {[%clk 0:01:19.2]} 20... Qe7 {[%clk
0:01:11.6]} 21. f4 {[%clk 0:01:16.3]} 21... Nc6 {[%clk 0:01:09.7]} 22. Nxc6
{[%clk 0:01:13.3]} 22... bxc6 {[%clk 0:01:09.8]} 23. e5 {[%clk 0:01:12.6]} 23...
Bg7 {[%clk 0:01:02.1]} 24. Qf3 {[%clk 0:01:12.8]} 24... dxe5 {[%clk 0:00:59]}
25. fxe5 {[%clk 0:01:11.9]} 25... Qe6 {[%clk 0:00:59.9]} 26. a3 {[%clk
0:01:04.6]} 26... Ra5 {[%clk 0:00:58.9]} 27. Rd4 {[%clk 0:01:00.1]} 27... Bxe5
{[%clk 0:00:58.5]} 28. Bxe5 {[%clk 0:00:44.8]} 28... Rxe5 {[%clk 0:00:58.2]} 29.
Rxe5 {[%clk 0:00:45.9]} 29... Qxe5 {[%clk 0:00:59]} 30. Rxa4 {[%clk 0:00:46.4]}
30... Re6 {[%clk 0:00:42.5]} 31. Rf4 {[%clk 0:00:42.7]} 31... f5 {[%clk
0:00:38.3]} 32. Rd4 {[%clk 0:00:36.2]} 32... c5 {[%clk 0:00:30.3]} 33. Rd8+
{[%clk 0:00:27.4]} 33... Kg7 {[%clk 0:00:31.3]} 34. Qa8 {[%clk 0:00:21.5]} 34...
Qe1+ {[%clk 0:00:30.4]} 35. Kh2 {[%clk 0:00:22.1]} 35... Qe5+ {[%clk 0:00:31.2]}
36. Kg1 {[%clk 0:00:22.8]} 36... Qg3 {[%clk 0:00:18.8]} 37. Rg8+ {[%clk
0:00:21.2]} 37... Kh6 {[%clk 0:00:19.9]} 38. Qf8+ {[%clk 0:00:21]} 38... Kh5
{[%clk 0:00:21.1]} 39. Qxf5+ {[%clk 0:00:09.2]} 39... gxf5 {[%clk 0:00:21.4]}
40. Rxg3 {[%clk 0:00:10.4]} 40... Re2 {[%clk 0:00:20.3]} 41. Rf3 {[%clk
0:00:08.6]} 41... Kg5 {[%clk 0:00:20]} 42. b4 {[%clk 0:00:09]} 42... c4 {[%clk
0:00:17.1]} 43. a4 {[%clk 0:00:08.8]} 43... Ra2 {[%clk 0:00:16.5]} 44. a5 {[%clk
0:00:10]} 44... f4 {[%clk 0:00:17.7]} 45. Kh2 {[%clk 0:00:09]} 45... Rc2 {[%clk
0:00:17.1]} 46. h4+ {[%clk 0:00:09.1]} 46... Kg4 {[%clk 0:00:17.6]} 47. h5
{[%clk 0:00:08.9]} 47... c6 {[%clk 0:00:18.1]} 48. h6 {[%clk 0:00:09.2]} 48...
Ra2 {[%clk 0:00:17.4]} 49. Rh3 {[%clk 0:00:09.2]} 49... Ra3 {[%clk 0:00:18.1]}
50. Rf3 {[%clk 0:00:09.4]} 50... Kg5 {[%clk 0:00:18.1]} 51. Kh3 {[%clk
0:00:09.9]} 51... Ra1 {[%clk 0:00:19.5]} 52. Kh2 {[%clk 0:00:09.7]} 52... Kg4
{[%clk 0:00:20.5]} 53. Rh3 {[%clk 0:00:09.6]} 53... Ra3 {[%clk 0:00:20.9]} 54.
Rf3 {[%clk 0:00:10.7]} 54... Ra1 {[%clk 0:00:20.1]} 55. Rh3 {[%clk 0:00:10.1]}
55... Ra3 {[%clk 0:00:21.6]} 56. Kg1 {[%clk 0:00:10.6]} 56... c5 {[%clk
0:00:23]} 57. Kf2 {[%clk 0:00:11.6]} 57... cxb4 {[%clk 0:00:22.7]} 58. cxb4
{[%clk 0:00:12.4]} 58... c3 {[%clk 0:00:20.3]} 59. a6 {[%clk 0:00:10.8]} 59...
c2 {[%clk 0:00:21.1]} 60. Rxa3 {[%clk 0:00:10.7]} 60... c1=Q {[%clk 0:00:22.1]}
61. a7 {[%clk 0:00:11.8]} 61... Qxa3 {[%clk 0:00:22.5]} 62. b5 {[%clk
0:00:12.7]} 62... Qxa7+ {[%clk 0:00:22.7]} 63. b6 {[%clk 0:00:13.2]} 63... Qxb6+
{[%clk 0:00:23.9]} 0-1

[Event "*** Biggest EVER Titled Tuesday"]
[Site "Chess.com"]
[Date "2018.04.17"]
[Round "6"]
[White "muran29"]
[Black "Bauxi435"]
[Result "0-1"]
[WhiteElo "2332"]
[BlackElo "2434"]
[TimeControl "180+2"]
[EndTime "14:24:46 PDT"]
[Termination "Bauxi435 won by checkmate"]

1. d4 {[%clk 0:03:00.9]} 1... Nf6 {[%clk 0:03:00.1]} 2. Bg5 {[%clk 0:02:59.7]}
2... Ne4 {[%clk 0:02:59.8]} 3. Bh4 {[%clk 0:03:00.7]} 3... c5 {[%clk 0:02:58.2]}
4. f3 {[%clk 0:02:54.1]} 4... Nf6 {[%clk 0:02:47.1]} 5. Bxf6 {[%clk 0:02:55]}
5... gxf6 {[%clk 0:02:46.9]} 6. d5 {[%clk 0:02:56.3]} 6... f5 {[%clk 0:02:45.8]}
7. c4 {[%clk 0:02:55.8]} 7... d6 {[%clk 0:02:46.5]} 8. Nc3 {[%clk 0:02:56.8]}
8... e6 {[%clk 0:02:44.7]} 9. e3 {[%clk 0:02:57.6]} 9... Bh6 {[%clk 0:02:42.5]}
10. Kf2 {[%clk 0:02:57]} 10... a6 {[%clk 0:02:37.6]} 11. Bd3 {[%clk 0:02:55.2]}
11... e5 {[%clk 0:02:37.5]} 12. Nge2 {[%clk 0:02:24.3]} 12... Rg8 {[%clk
0:02:35.7]} 13. g3 {[%clk 0:02:06.2]} 13... Qf6 {[%clk 0:02:21]} 14. f4 {[%clk
0:01:52]} 14... e4 {[%clk 0:02:19]} 15. Bc2 {[%clk 0:01:51.8]} 15... Bf8 {[%clk
0:02:12.3]} 16. a4 {[%clk 0:01:49.7]} 16... h5 {[%clk 0:02:08.6]} 17. Rb1 {[%clk
0:01:33.6]} 17... a5 {[%clk 0:02:05.4]} 18. Nb5 {[%clk 0:01:32.2]} 18... Kd8
{[%clk 0:01:58.9]} 19. Nec3 {[%clk 0:01:32.8]} 19... Na6 {[%clk 0:01:57.9]} 20.
Qxh5 {[%clk 0:01:29.6]} 20... Nb4 {[%clk 0:01:57]} 21. Qe2 {[%clk 0:01:28.6]}
21... Be7 {[%clk 0:01:54.9]} 22. Rbd1 {[%clk 0:01:07.9]} 22... Bd7 {[%clk
0:01:45.6]} 23. Bb1 {[%clk 0:01:08.5]} 23... Be8 {[%clk 0:01:43.4]} 24. Rhg1
{[%clk 0:00:59.5]} 24... Qh6 {[%clk 0:01:43.5]} 25. Rg2 {[%clk 0:00:53.1]} 25...
f6 {[%clk 0:01:42.9]} 26. Qd2 {[%clk 0:00:16.7]} 26... Bh5 {[%clk 0:01:40.8]}
27. Kg1 {[%clk 0:00:07.1]} 27... Bxd1 {[%clk 0:01:19.4]} 28. Qxd1 {[%clk
0:00:08.3]} 28... Kd7 {[%clk 0:01:20.3]} 29. Qe2 {[%clk 0:00:07.9]} 29... Rh8
{[%clk 0:01:21.1]} 30. Bxe4 {[%clk 0:00:04.6]} 30... fxe4 {[%clk 0:01:19.3]} 31.
Qg4+ {[%clk 0:00:05.9]} 31... Kd8 {[%clk 0:01:03.6]} 32. Nxe4 {[%clk 0:00:07]}
32... Qh5 {[%clk 0:00:25.1]} 33. Qxh5 {[%clk 0:00:08]} 33... Rxh5 {[%clk
0:00:25.6]} 34. g4 {[%clk 0:00:09.9]} 34... Rh3 {[%clk 0:00:23.9]} 35. g5 {[%clk
0:00:08.7]} 35... fxg5 {[%clk 0:00:22.5]} 36. fxg5 {[%clk 0:00:10.6]} 36... Kd7
{[%clk 0:00:23.1]} 37. g6 {[%clk 0:00:07.2]} 37... Rg8 {[%clk 0:00:22.4]} 38.
Kf2 {[%clk 0:00:05.6]} 38... Rh6 {[%clk 0:00:20.5]} 39. g7 {[%clk 0:00:04.1]}
39... Rh7 {[%clk 0:00:21.8]} 40. Nbxd6 {[%clk 0:00:02]} 40... Rhxg7 {[%clk
0:00:23.1]} 41. Rxg7 {[%clk 0:00:02.9]} 41... Rxg7 {[%clk 0:00:24.1]} 42. Nf5
{[%clk 0:00:04.8]} 42... Rf7 {[%clk 0:00:24.9]} 43. Ng3 {[%clk 0:00:05.8]} 43...
Nd3+ {[%clk 0:00:25]} 44. Ke2 {[%clk 0:00:06.8]} 44... Nxb2 {[%clk 0:00:26.2]}
45. e4 {[%clk 0:00:07.1]} 45... Nxc4 {[%clk 0:00:27.1]} 46. Kd3 {[%clk
0:00:08.2]} 46... Ne5+ {[%clk 0:00:28]} 47. Ke3 {[%clk 0:00:09.7]} 47... Bg5+
{[%clk 0:00:26.2]} 48. Kf2 {[%clk 0:00:09.3]} 48... Rh7 {[%clk 0:00:25.5]} 49.
Kg2 {[%clk 0:00:09.7]} 49... c4 {[%clk 0:00:26.3]} 50. Nd4 {[%clk 0:00:10]}
50... c3 {[%clk 0:00:27.2]} 51. Nc2 {[%clk 0:00:11.4]} 51... Kd6 {[%clk
0:00:20.1]} 52. Nf5+ {[%clk 0:00:12.6]} 52... Kc5 {[%clk 0:00:21.5]} 53. Kg3
{[%clk 0:00:14]} 53... Kc4 {[%clk 0:00:22]} 54. h4 {[%clk 0:00:14.9]} 54... Bd2
{[%clk 0:00:23]} 55. h5 {[%clk 0:00:13.5]} 55... Kd3 {[%clk 0:00:24.2]} 56. Nfd4
{[%clk 0:00:14.3]} 56... Kxe4 {[%clk 0:00:23.9]} 57. d6 {[%clk 0:00:15]} 57...
Rxh5 {[%clk 0:00:23.8]} 58. Nb5 {[%clk 0:00:12.6]} 58... Rg5+ {[%clk 0:00:24.3]}
59. Kf2 {[%clk 0:00:13.5]} 59... Rg6 {[%clk 0:00:23.8]} 60. Ke2 {[%clk 0:00:14]}
60... Kd5 {[%clk 0:00:21.5]} 61. Ne3+ {[%clk 0:00:09]} 61... Bxe3 {[%clk
0:00:21.9]} 62. Kxe3 {[%clk 0:00:10.5]} 62... c2 {[%clk 0:00:22.2]} 63. Kd2
{[%clk 0:00:12]} 63... Rg2+ {[%clk 0:00:22.4]} 64. Kc1 {[%clk 0:00:13.5]} 64...
Nd3# {[%clk 0:00:23.5]} 0-1

[Event "*** Biggest EVER Titled Tuesday"]
[Site "Chess.com"]
[Date "2018.04.17"]
[Round "6"]
[White "BjarkeSahl"]
[Black "IMVoja"]
[Result "1-0"]
[WhiteElo "2214"]
[BlackElo "2309"]
[TimeControl "180+2"]
[EndTime "14:24:47 PDT"]
[Termination "BjarkeSahl won by resignation"]

1. d4 {[%clk 0:03:01.9]} 1... Nf6 {[%clk 0:03:00.1]} 2. Bg5 {[%clk 0:03:02.4]}
2... Ne4 {[%clk 0:02:59.9]} 3. Bf4 {[%clk 0:03:02.4]} 3... c5 {[%clk 0:02:58.7]}
4. f3 {[%clk 0:03:03.1]} 4... Qa5+ {[%clk 0:02:58.9]} 5. Nd2 {[%clk 0:03:03.7]}
5... Nxd2 {[%clk 0:02:58.4]} 6. Bxd2 {[%clk 0:03:04.7]} 6... Qb6 {[%clk
0:02:54.1]} 7. Bc3 {[%clk 0:02:55.8]} 7... e6 {[%clk 0:02:52.1]} 8. d5 {[%clk
0:02:54.9]} 8... d6 {[%clk 0:02:46.9]} 9. e4 {[%clk 0:02:50.9]} 9... e5 {[%clk
0:02:47.2]} 10. Qd2 {[%clk 0:02:31.9]} 10... Be7 {[%clk 0:02:43.7]} 11. O-O-O
{[%clk 0:02:29.9]} 11... Qc7 {[%clk 0:02:28.6]} 12. Bb5+ {[%clk 0:02:26]} 12...
Nd7 {[%clk 0:02:27.3]} 13. f4 {[%clk 0:02:25.1]} 13... Bf6 {[%clk 0:02:26.2]}
14. Nf3 {[%clk 0:02:21.5]} 14... O-O {[%clk 0:02:10.4]} 15. Bxd7 {[%clk
0:02:16.7]} 15... Bxd7 {[%clk 0:02:11.5]} 16. fxe5 {[%clk 0:02:14.2]} 16... dxe5
{[%clk 0:02:10]} 17. d6 {[%clk 0:01:52.8]} 17... Qd8 {[%clk 0:02:08.7]} 18. Bxe5
{[%clk 0:01:51.9]} 18... Be6 {[%clk 0:02:03.4]} 19. Bxf6 {[%clk 0:01:45.4]}
19... Qxf6 {[%clk 0:02:04]} 20. e5 {[%clk 0:01:36.4]} 20... Qg6 {[%clk
0:02:02.3]} 21. a3 {[%clk 0:01:33]} 21... h6 {[%clk 0:01:59.8]} 22. Rhe1 {[%clk
0:01:18.2]} 22... b5 {[%clk 0:01:59.6]} 23. Re2 {[%clk 0:01:10.9]} 23... a5
{[%clk 0:01:58.2]} 24. Qe3 {[%clk 0:01:10.7]} 24... c4 {[%clk 0:01:48.6]} 25. h3
{[%clk 0:00:55.3]} 25... b4 {[%clk 0:01:47.4]} 26. Nd4 {[%clk 0:00:56.3]} 26...
bxa3 {[%clk 0:01:43.2]} 27. Qxa3 {[%clk 0:00:53]} 27... Rfb8 {[%clk 0:01:36.4]}
28. Nc6 {[%clk 0:00:48.9]} 28... Qg5+ {[%clk 0:01:31.3]} 29. Qe3 {[%clk
0:00:49.5]} 29... Rb6 {[%clk 0:01:27.5]} 30. Qxg5 {[%clk 0:00:49.6]} 30... hxg5
{[%clk 0:01:27.9]} 31. Nd4 {[%clk 0:00:45.7]} 31... Bd7 {[%clk 0:01:25.7]} 32.
Re3 {[%clk 0:00:45.3]} 32... Rab8 {[%clk 0:01:25.4]} 33. Rc3 {[%clk 0:00:38]}
33... Rb4 {[%clk 0:01:10.9]} 34. Kd2 {[%clk 0:00:31]} 34... g6 {[%clk
0:01:06.2]} 35. Ra1 {[%clk 0:00:31.2]} 35... a4 {[%clk 0:01:06.9]} 36. Ra2
{[%clk 0:00:26.5]} 36... g4 {[%clk 0:01:06.3]} 37. hxg4 {[%clk 0:00:24.4]} 37...
Bxg4 {[%clk 0:01:08.2]} 38. Nc6 {[%clk 0:00:23.3]} 38... Rxb2 {[%clk 0:01:03.8]}
39. Rxa4 {[%clk 0:00:24.3]} 39... R8b5 {[%clk 0:00:57.7]} 40. Raxc4 {[%clk
0:00:23.2]} 40... Rd5+ {[%clk 0:00:58.6]} 41. Rd4 {[%clk 0:00:23.6]} 41... Rxd4+
{[%clk 0:00:51.7]} 42. Nxd4 {[%clk 0:00:24.8]} 42... Rb4 {[%clk 0:00:46.6]} 43.
Ke3 {[%clk 0:00:26]} 43... Rb8 {[%clk 0:00:44.8]} 44. Rc7 {[%clk 0:00:26.8]}
44... Re8 {[%clk 0:00:45]} 45. Kf4 {[%clk 0:00:27.5]} 45... Bd1 {[%clk
0:00:30.9]} 46. c4 {[%clk 0:00:27.3]} 46... Ba4 {[%clk 0:00:29.8]} 47. c5 {[%clk
0:00:27.2]} 47... Rb8 {[%clk 0:00:29.7]} 48. Nc6 {[%clk 0:00:25.4]} 48... Bxc6
{[%clk 0:00:28.2]} 49. Rxc6 {[%clk 0:00:26.2]} 49... Rb4+ {[%clk 0:00:28.4]} 50.
Ke3 {[%clk 0:00:27.5]} 50... Rb3+ {[%clk 0:00:28.8]} 51. Kd4 {[%clk 0:00:28.5]}
51... Rb2 {[%clk 0:00:29.1]} 52. Rc8+ {[%clk 0:00:29.3]} 52... Kg7 {[%clk
0:00:30.2]} 53. c6 {[%clk 0:00:30]} 53... Rxg2 {[%clk 0:00:30.5]} 54. c7 {[%clk
0:00:30.7]} 54... Rd2+ {[%clk 0:00:32.1]} 55. Kc5 {[%clk 0:00:31.8]} 55... g5
{[%clk 0:00:32.6]} 56. Rg8+ {[%clk 0:00:30.1]} 56... Kxg8 {[%clk 0:00:33.4]} 57.
c8=Q+ {[%clk 0:00:31.5]} 57... Kg7 {[%clk 0:00:34.1]} 58. Qd8 {[%clk 0:00:33.1]}
58... Kg6 {[%clk 0:00:34.6]} 59. Qf6+ {[%clk 0:00:33.6]} 59... Kh5 {[%clk
0:00:35.4]} 60. Qxf7+ {[%clk 0:00:33.4]} 60... Kh4 {[%clk 0:00:36.7]} 61. e6
{[%clk 0:00:34.6]} 61... g4 {[%clk 0:00:37.8]} 62. e7 {[%clk 0:00:35.7]} 62...
Rc2+ {[%clk 0:00:38.3]} 63. Kd5 {[%clk 0:00:36.2]} 63... Rd2+ {[%clk 0:00:39.2]}
64. Kc6 {[%clk 0:00:37.4]} 64... Rc2+ {[%clk 0:00:39.3]} 65. Kd7 {[%clk
0:00:38.6]} 65... Rg2 {[%clk 0:00:39.2]} 66. Qh7+ {[%clk 0:00:39.4]} 66... Kg3
{[%clk 0:00:40.5]} 67. e8=Q {[%clk 0:00:40.3]} 67... Rf2 {[%clk 0:00:41.7]} 68.
Qe5+ {[%clk 0:00:40.5]} 68... Kg2 {[%clk 0:00:43]} 69. Qhh2+ {[%clk 0:00:41.1]}
69... Kf1 {[%clk 0:00:44.3]} 70. Qa1+ {[%clk 0:00:41.3]} 70... Ke2 {[%clk
0:00:44.8]} 71. Qb2+ {[%clk 0:00:42.7]} 71... Kd1 {[%clk 0:00:45.7]} 72. Qhxf2
{[%clk 0:00:43.1]} 72... g3 {[%clk 0:00:47.2]} 73. Qg2 {[%clk 0:00:43]} 73...
Ke1 {[%clk 0:00:45.6]} 74. Kc6 {[%clk 0:00:44.2]} 1-0

[Event "*** Biggest EVER Titled Tuesday"]
[Site "Chess.com"]
[Date "2018.04.17"]
[Round "6"]
[White "bugsbunny444"]
[Black "Thee-Chessboy"]
[Result "1-0"]
[WhiteElo "2421"]
[BlackElo "2306"]
[TimeControl "180+2"]
[EndTime "14:24:47 PDT"]
[Termination "bugsbunny444 won by resignation"]

1. Nf3 {[%clk 0:03:01.9]} 1... Nf6 {[%clk 0:03:00.3]} 2. c4 {[%clk 0:03:03.1]}
2... g6 {[%clk 0:02:59.8]} 3. b4 {[%clk 0:03:03.9]} 3... Bg7 {[%clk 0:02:59.4]}
4. Bb2 {[%clk 0:03:05.5]} 4... O-O {[%clk 0:03:00]} 5. g3 {[%clk 0:03:06.8]}
5... d5 {[%clk 0:02:57.5]} 6. cxd5 {[%clk 0:03:07.4]} 6... Nxd5 {[%clk
0:02:58.6]} 7. Bxg7 {[%clk 0:03:09.3]} 7... Kxg7 {[%clk 0:02:59.7]} 8. Qb3
{[%clk 0:03:10.9]} 8... f6 {[%clk 0:02:55.1]} 9. Bg2 {[%clk 0:03:11.4]} 9... e5
{[%clk 0:02:54]} 10. d3 {[%clk 0:02:47.5]} 10... Be6 {[%clk 0:02:53.1]} 11. Qb2
{[%clk 0:02:42.7]} 11... Qd6 {[%clk 0:02:41.9]} 12. a3 {[%clk 0:02:34.9]} 12...
Nd7 {[%clk 0:02:31.3]} 13. Nbd2 {[%clk 0:02:28.5]} 13... c6 {[%clk 0:02:10.9]}
14. O-O {[%clk 0:02:26.6]} 14... Qe7 {[%clk 0:01:51]} 15. d4 {[%clk 0:02:24.8]}
15... exd4 {[%clk 0:01:48.4]} 16. Nxd4 {[%clk 0:02:19.7]} 16... Bg8 {[%clk
0:01:48.5]} 17. N2b3 {[%clk 0:01:55.7]} 17... Ne5 {[%clk 0:01:40.8]} 18. Na5
{[%clk 0:01:52.7]} 18... Rac8 {[%clk 0:01:18.8]} 19. Rac1 {[%clk 0:01:52.8]}
19... Rfd8 {[%clk 0:01:12.1]} 20. Rfd1 {[%clk 0:01:52.7]} 20... Nb6 {[%clk
0:01:00.6]} 21. Qa1 {[%clk 0:01:03.6]} 21... Nec4 {[%clk 0:00:55.9]} 22. e3
{[%clk 0:00:43.9]} 22... a6 {[%clk 0:00:44]} 23. Nxc4 {[%clk 0:00:27]} 23...
Nxc4 {[%clk 0:00:44.4]} 24. Qc3 {[%clk 0:00:27.9]} 24... Rd6 {[%clk 0:00:36.7]}
25. Bf1 {[%clk 0:00:20.3]} 25... Ne5 {[%clk 0:00:32.2]} 26. Be2 {[%clk
0:00:13.1]} 26... Rcd8 {[%clk 0:00:30.1]} 27. Nf3 {[%clk 0:00:13.4]} 27... Rxd1+
{[%clk 0:00:28.2]} 28. Rxd1 {[%clk 0:00:14.2]} 28... Rxd1+ {[%clk 0:00:29.1]}
29. Bxd1 {[%clk 0:00:16.1]} 29... Nxf3+ {[%clk 0:00:28]} 30. Bxf3 {[%clk
0:00:17.1]} 30... Qd6 {[%clk 0:00:21.8]} 31. Kf1 {[%clk 0:00:13.4]} 31... Bf7
{[%clk 0:00:21.8]} 32. h4 {[%clk 0:00:11.9]} 32... Qe6 {[%clk 0:00:22.9]} 33.
Kg2 {[%clk 0:00:10.6]} 33... Qa2 {[%clk 0:00:22.5]} 34. Be4 {[%clk 0:00:09.6]}
34... Qe6 {[%clk 0:00:22.9]} 35. Bf3 {[%clk 0:00:10.1]} 35... Qa2 {[%clk
0:00:23.7]} 36. Be4 {[%clk 0:00:08.4]} 36... Qe2 {[%clk 0:00:24.4]} 37. Bf3
{[%clk 0:00:09.3]} 37... Qb5 {[%clk 0:00:25]} 38. g4 {[%clk 0:00:10]} 38... a5
{[%clk 0:00:25.8]} 39. g5 {[%clk 0:00:11.2]} 39... Qf5 {[%clk 0:00:24.8]} 40.
bxa5 {[%clk 0:00:07.6]} 40... Be6 {[%clk 0:00:22.6]} 41. Qxf6+ {[%clk
0:00:04.2]} 41... Qxf6 {[%clk 0:00:23.5]} 42. gxf6+ {[%clk 0:00:06.1]} 42...
Kxf6 {[%clk 0:00:25]} 43. a6 {[%clk 0:00:07.7]} 43... bxa6 {[%clk 0:00:26.3]}
44. Bxc6 {[%clk 0:00:08.9]} 44... a5 {[%clk 0:00:28.2]} 45. f4 {[%clk
0:00:09.2]} 45... Ke7 {[%clk 0:00:29.4]} 46. Kf3 {[%clk 0:00:06.8]} 46... Kd6
{[%clk 0:00:30.7]} 47. Be4 {[%clk 0:00:06.7]} 47... Kc5 {[%clk 0:00:32.1]} 48.
h5 {[%clk 0:00:07.9]} 48... gxh5 {[%clk 0:00:31.7]} 49. Bxh7 {[%clk 0:00:08.8]}
49... Kc4 {[%clk 0:00:30.7]} 50. f5 {[%clk 0:00:06.1]} 50... Bf7 {[%clk
0:00:31.4]} 51. Bg6 {[%clk 0:00:03.8]} 51... Bg8 {[%clk 0:00:32.5]} 52. Bxh5
{[%clk 0:00:04.7]} 52... Kb3 {[%clk 0:00:33.3]} 53. f6 {[%clk 0:00:06.1]} 53...
Kxa3 {[%clk 0:00:34.5]} 54. f7 {[%clk 0:00:07.5]} 54... Bxf7 {[%clk 0:00:36]}
55. Bxf7 {[%clk 0:00:09.2]} 55... Kb4 {[%clk 0:00:37.2]} 56. e4 {[%clk
0:00:08.6]} 56... a4 {[%clk 0:00:38.3]} 57. e5 {[%clk 0:00:09.9]} 57... Kc5
{[%clk 0:00:39.5]} 58. Kf4 {[%clk 0:00:10]} 58... a3 {[%clk 0:00:39.8]} 59. Ba2
{[%clk 0:00:10.5]} 59... Kc6 {[%clk 0:00:41.1]} 60. Kf5 {[%clk 0:00:11.8]} 60...
Kd7 {[%clk 0:00:43]} 61. Kf6 {[%clk 0:00:12.7]} 61... Ke8 {[%clk 0:00:44.5]} 62.
Ke6 {[%clk 0:00:12.4]} 62... Kd8 {[%clk 0:00:44]} 63. Kf7 {[%clk 0:00:13.6]} 1-0